bitfinex/quotes_ETHUSD_20260207
["timestamp","ask_amount","ask_price","bid_price","bid_amount"]
[1770501758175,1.79574294,2100.9,2100.1,1.82038879]
[1770501758367,1.1897963,2101.2,2100.1,1.82038879]
[1770501758550,2.98553924,2101.2,2100.1,1.82038879]
[1770501759366,1.1897963,2101.2,2100.1,1.82038879]
[1770501759572,1.79574294,2101.1,2100.1,1.82038879]
[1770501759854,1.79574294,2101.0,2100.2,3.00975161]
[1770501760964,1.79574294,2101.0,2100.3,1.81938879]
[1770501761148,1.19174753,2101.3,2100.3,1.81938879]
[1770501761361,2.98749047,2101.3,2100.3,1.81938879]
[1770501762176,2.98749047,2101.3,2100.5,1.81938879]
[1770501763663,1.79774294,2101.3,2100.5,1.81938879]
[1770501763886,2.98748547,2101.3,2100.5,1.81938879]
[1770501764085,1.79574294,2101.2,2100.5,1.81938879]
[1770501764476,1.79574294,2101.2,2100.6,1.19013615]
[1770501764794,0.002,2101.3,2100.7,1.81938879]
[1770501765627,1.79774294,2101.3,2100.6,1.19013615]
[1770501766217,1.79774294,2101.3,2100.6,3.00952494]
[1770501766409,2.98748792,2101.3,2100.6,3.00952494]
[1770501767406,0.002,2101.3,2100.7,1.81938879]
[1770501767602,1.79774294,2101.3,2100.7,1.81938879]
[1770501768809,0.002,2101.1,2100.7,1.81938879]
[1770501770694,0.002,2101.1,2100.5,1.81938879]
[1770501772413,1.79574294,2101.0,2100.3,1.82038879]
[1770501772788,2.98565473,2101.0,2100.3,3.01064194]
[1770501776215,1.79574294,2100.9,2100.3,3.01064194]
[1770501777014,1.79574294,2100.9,2100.3,1.19130324]
[1770501778115,1.79574294,2100.9,2100.3,0.001]
[1770501778421,5.52461759,2101.0,2100.3,3.01068425]
[1770501778595,7.32036053,2101.0,2100.3,3.01068425]
[1770501779295,1.19186033,2101.1,2100.4,1.81938879]
[1770501779496,2.98760327,2101.1,2100.4,1.81938879]
[1770501780502,1.79574294,2101.0,2100.4,3.0096001]
[1770501781238,0.002,2101.1,2100.5,1.81938879]
[1770501781599,0.002,2101.1,2100.5,1.82038879]
[1770501781905,0.002,2101.1,2100.7,1.81938879]
[1770501782656,0.002,2101.3,2101.1,1.81938879]
[1770501784742,0.002,2101.3,2101.2,1.1897963]
[1770501785439,0.002,2101.3,2101.2,3.00918509]
[1770501786614,0.002,2101.7,2101.5,1.86148795]
[1770501786806,0.006,2101.7,2101.5,1.86148795]
[1770501787226,0.002,2101.9,2101.5,1.86148795]
[1770501789326,0.002,2101.9,2101.6,1.18956985]
[1770501791332,0.002,2101.9,2101.6,1.86148795]
[1770501793837,0.002,2101.9,2101.7,2.93944892]
[1770501795331,0.002,2101.9,2101.7,1.19051325]
[1770501796045,0.002,2101.9,2101.7,0.001]
[1770501796831,1.72419281,2101.9,2101.5,0.001]
[1770501797030,1.72419281,2101.9,2101.3,1.18973637]
[1770501797234,1.72419281,2101.9,2101.4,1.18968065]
[1770501797534,1.72419281,2101.9,2101.2,1.1897716]
[1770501797746,1.72419281,2101.9,2101.3,1.18973756]
[1770501798133,1.72419281,2101.9,2101.2,1.1897963]
[1770501799335,1.72419281,2101.9,2101.2,2.93873197]
[1770501800039,0.002,2101.9,2101.3,1.74893567]
[1770501800238,0.002,2101.9,2101.4,1.18968306]
[1770501802053,1.72419281,2101.9,2101.2,1.18975694]
[1770501802242,1.72219281,2101.8,2101.2,1.18975694]
[1770501804084,1.72219281,2101.8,2101.1,1.18984984]
[1770501804292,1.72219281,2101.7,2101.0,4.7596047]
[1770501804589,1.72219281,2101.7,2101.0,1.18990956]
[1770501806250,1.72219281,2101.7,2101.4,0.001]
[1770501806448,0.002,2101.6,2101.4,0.001]
[1770501807667,0.002,2101.6,2101.4,1.74993567]
[1770501807969,0.002,2101.6,2101.4,0.001]
[1770501815692,0.002,2101.6,2101.4,1.86870016]
[1770501816961,0.002,2101.6,2101.4,0.001]
[1770501820583,1.81942194,2101.6,2101.1,1.19085282]
[1770501823198,0.002,2101.6,2101.1,1.19085282]
[1770501825005,0.002,2101.6,2101.2,1.86770016]
[1770501825318,0.002,2102.1,2101.2,1.86770016]
[1770501825486,0.002,2102.1,2101.5,1.86770016]
[1770501827491,0.002,2102.1,2101.7,1.86770016]
[1770501829221,0.002,2102.1,2101.5,3.05728303]
[1770501830390,0.002,2102.1,2101.6,0.001]
[1770501830791,0.002,2101.9,2101.6,0.001]
[1770501831321,0.002,2101.9,2101.6,1.86870016]
[1770501831503,0.002,2101.9,2101.7,3.05721341]
[1770501836226,0.002,2101.9,2101.6,0.001]
[1770501837925,0.002,2101.9,2101.6,1.86870016]
[1770501839021,0.002,2101.9,2101.7,1.18951325]
[1770501840532,0.002,2101.9,2101.6,1.19052492]
[1770501840910,0.002,2101.9,2101.6,3.05822508]
[1770501841730,0.002,2101.9,2101.6,1.19052492]
[1770501842030,0.002,2101.9,2101.6,3.05822508]
[1770501842232,0.002,2101.9,2101.6,1.19052492]
[1770501843403,0.002,2101.7,2101.6,1.19052492]
[1770501843603,0.002,2101.9,2101.6,1.19052492]
[1770501844722,0.002,2101.9,2101.6,3.05822508]
[1770501845745,0.002,2101.9,2101.6,1.19052492]
[1770501845947,0.002,2101.9,2101.7,1.72301641]
[1770501846151,0.002,2101.9,2101.6,1.19052492]
[1770501846644,0.002,2101.9,2101.6,0.001]
[1770501847346,1.77917509,2101.9,2101.6,0.001]
[1770501849849,1.77917509,2101.9,2101.4,0.001]
[1770501850342,1.19141017,2101.9,2101.4,0.001]
[1770501850523,6.10851841,2101.7,2101.4,0.001]
[1770501851442,1.77917509,2101.9,2101.4,0.001]
[1770501855330,0.002,2101.9,2101.6,0.001]
[1770501855649,0.002,2101.7,2101.6,1.8750958]
[1770501857451,0.002,2101.7,2101.6,0.001]
[1770501865535,0.002,2101.7,2101.6,1.8750958]
[1770501865735,0.002,2101.9,2101.6,1.8750958]
[1770501867263,0.002,2101.9,2101.8,0.001]
[1770501870166,0.002,2101.9,2101.6,0.001]
[1770501870839,1.86977527,2101.7,2101.4,0.001]
[1770501871041,1.86977527,2101.7,2101.1,0.001]
[1770501871249,4.32991803,2101.8,2101.1,1.8750958]
[1770501871466,1.87177527,2101.9,2101.1,1.8750958]
[1770501871682,1.86977527,2101.8,2101.1,1.8750958]
[1770501871992,1.86977527,2101.8,2101.2,0.01922362]
[1770501873183,1.86977527,2101.8,2101.3,1.18973968]
[1770501873359,1.86977527,2101.8,2101.4,0.01922179]
[1770501873675,1.86977527,2101.8,2101.3,1.18973968]
[1770501876186,1.86977527,2101.8,2101.1,1.19085293]
[1770501876488,1.86977527,2101.8,2101.1,2.91230705]
[1770501876661,1.86977527,2101.8,2101.2,1.72145412]
[1770501876868,0.002,2101.9,2101.2,1.72145412]
[1770501877187,0.002,2101.9,2101.4,1.72145412]
[1770501878653,0.002,2101.9,2101.5,2.91108057]
[1770501880278,0.002,2101.9,2101.6,0.001]
[1770501880458,0.002,2101.7,2101.6,0.001]
[1770501892607,0.002,2102.1,2101.7,1.72145412]
[1770501892907,0.002,2102.1,2101.7,1.7571217]
[1770501895904,0.002,2102.1,2101.8,1.18945665]
[1770501896194,0.002,2102.1,2101.9,1.72145412]
[1770501898175,0.002,2102.1,2101.8,1.18942345]
[1770501899281,0.002,2102.1,2101.7,1.18949004]
[1770501899486,1.86753318,2102.0,2101.6,0.001]
[1770501900709,1.86753318,2101.9,2101.6,0.001]
[1770501901095,1.86753318,2101.7,2101.2,1.18979239]
[1770501901425,1.86753318,2101.9,2101.2,2.91124651]
[1770501901592,1.86753318,2101.9,2101.3,1.18973639]
[1770501902220,1.86753318,2101.9,2101.1,1.19082428]
[1770501902388,1.86753318,2101.8,2101.1,2.9122784]
[1770501902716,1.86753318,2101.8,2101.1,0.001]
[1770501903020,1.86753318,2101.7,2101.1,0.001]
[1770501904294,1.86753318,2101.7,2101.5,0.001]
[1770501904490,1.86753318,2101.5,2101.1,0.001]
[1770501906816,3.05718257,2101.5,2101.1,0.001]
[1770501912731,1.75636785,2101.4,2101.1,0.001]
[1770501913112,1.75636785,2101.5,2101.1,0.001]
[1770501913434,0.002,2101.9,2101.2,1.76073751]
[1770501913598,1.19140199,2101.9,2101.2,1.76073751]
[1770501913994,0.002,2101.9,2101.3,2.95047719]
[1770501914210,0.002,2101.9,2101.4,1.76073751]
[1770501915730,0.002,2101.9,2101.3,1.18973968]
[1770501916023,2.9458245,2101.8,2101.3,0.001]
[1770501916606,0.002,2101.5,2101.3,0.001]
[1770501919030,0.002,2101.5,2101.3,1.76173751]
[1770501920533,0.002,2101.5,2101.4,1.18968306]
[1770501920739,0.002,2101.5,2101.4,2.95042057]
[1770501922045,0.002,2101.9,2101.5,1.76073751]
[1770501922738,0.002,2101.9,2101.7,1.76073751]
[1770501923736,0.002,2102.1,2101.7,1.76073751]
[1770501926333,0.002,2102.1,2101.8,2.95019416]
[1770501926834,0.002,2102.1,2101.7,1.18947682]
[1770501927543,0.002,2102.1,2101.6,2.95026448]
[1770501927848,1.75836785,2102.1,2101.4,1.18965839]
[1770501928148,1.75836785,2102.1,2101.1,1.19084719]
[1770501928149,4.32950009,2102.0,2101.1,1.19084719]
[1770501928307,4.32950009,2101.7,2101.1,0.001]
[1770501928511,2.94576791,2101.9,2101.1,1.76173751]
[1770501928736,2.94776791,2101.9,2101.1,1.76173751]
[1770501928931,1.75636785,2101.8,2101.5,0.001]
[1770501930825,0.002,2101.9,2101.5,0.001]
[1770501933141,0.002,2101.9,2101.5,1.76173751]
[1770501936572,0.002,2101.9,2101.7,1.68176747]
[1770501938067,0.002,2101.9,2101.5,2.87235139]
[1770501938249,1.69916036,2101.9,2101.5,0.001]
[1770501938442,1.69916036,2101.9,2101.5,1.19062308]
[1770501938648,0.002,2101.9,2101.5,0.001]
[1770501940276,0.002,2101.9,2101.5,1.68276747]
[1770501940974,0.002,2101.9,2101.7,1.68176747]
[1770501944467,0.002,2101.9,2101.8,1.18945665]
[1770501945943,0.002,2101.9,2101.8,1.68176747]
[1770501948073,0.002,2101.9,2101.6,2.87133732]
[1770501949172,0.002,2101.9,2101.5,4.79494698]
[1770501949173,0.002,2101.9,2101.5,1.1906225]
[1770501950276,0.002,2101.9,2101.5,1.68276747]
[1770501952575,0.002,2101.9,2101.7,1.68176747]
[1770501954775,0.002,2101.9,2101.8,2.87122412]
[1770501957366,0.002,2101.9,2101.6,2.87133732]
[1770501961255,0.002,2101.9,2101.5,4.7950949]
[1770501961256,1.69916036,2101.9,2101.5,2.87234775]
[1770501961456,1.69916036,2101.9,2101.6,1.18956021]
[1770501961857,1.69916036,2101.9,2101.5,2.8723515]
[1770501962294,1.69916036,2101.9,2101.6,1.18956823]
[1770501962758,0.002,2102.1,2101.6,1.22523581]
[1770501963789,0.002,2102.1,2101.7,1.68176747]
[1770501964795,1.69916036,2102.1,2101.5,1.19058533]
[1770501965090,1.69716036,2102.0,2101.5,0.001]
[1770501965684,0.002,2101.9,2101.5,0.001]
[1770501968094,1.62064394,2101.9,2101.5,0.001]
[1770501970095,0.002,2101.9,2101.5,0.001]
[1770501970487,0.002,2101.9,2101.5,1.55585373]
[1770501972273,0.002,2101.9,2101.6,1.18956985]
[1770501977407,0.002,2101.9,2101.7,0.001]
[1770501979276,1.55967576,2101.8,2101.3,0.001]
[1770501981583,1.55967576,2101.7,2101.3,0.001]
[1770501984411,1.55967576,2101.6,2101.3,0.002]
[1770501985513,1.18946602,2101.8,2101.4,0.001]
[1770501985813,1.55967576,2101.7,2101.4,0.001]
[1770501986821,1.55967576,2101.6,2101.4,0.001]
[1770501988617,1.55967576,2101.8,2101.4,0.001]
[1770501989192,1.55967576,2101.8,2101.6,0.001]
[1770501989415,0.002,2101.6,2101.4,0.001]
[1770501989714,0.002,2101.6,2101.4,0.002]
[1770501991892,0.002,2101.6,2101.4,0.001]
[1770501993726,0.002,2101.6,2101.5,0.001]
[1770501995528,6.31928067,2101.9,2101.5,1.57911761]
[1770501995529,0.002,2101.9,2101.5,1.57911761]
[1770501996722,0.002,2101.9,2101.4,1.58011761]
[1770501998065,0.002,2101.9,2101.5,1.18962645]
[1770501998205,0.002,2101.9,2101.5,2.76874406]
[1770501998838,0.002,2101.9,2101.5,1.18962645]
[1770501999025,0.002,2101.9,2101.6,1.57911761]
[1770502000854,0.002,2101.9,2101.7,1.57911761]
[1770502001818,0.002,2101.9,2101.7,1.58011761]
[1770502003959,0.002,2101.9,2101.7,0.001]
[1770502010276,1e-08,2102.3,2101.9,1.57911761]
[1770502014092,1.56398,2102.3,2101.7,1.19048501]
[1770502014373,1.56597999,2101.9,2101.7,0.001]
[1770502015671,0.002,2101.9,2101.7,0.001]
[1770502028462,1.66922581,2101.9,2101.7,0.001]
[1770502033807,0.002,2101.9,2101.7,1.55823395]
[1770502034007,1e-08,2102.3,2102.1,1.55723395]
[1770502034300,1e-08,2102.3,2101.7,1.55823395]
[1770502034475,1.18917942,2102.3,2101.7,1.55823395]
[1770502034676,1e-08,2102.3,2101.7,1.55823395]
[1770502035776,1e-08,2102.3,2101.8,2.7466906]
[1770502037803,1e-08,2102.3,2101.9,1.55723395]
[1770502038317,1e-08,2102.3,2102.0,1.55723395]
[1770502038786,1e-08,2102.3,2102.0,1.59290153]
[1770502040200,1e-08,2102.3,2102.1,1.1892869]
[1770502040400,1e-08,2102.3,2102.2,1.55723395]
[1770502040998,0.002,2102.5,2102.2,1.55723395]
[1770502040999,0.002,2102.7,2102.2,4.33029237]
[1770502041197,0.002,2102.9,2102.7,1.55723395]
[1770502041420,0.24859304,2104.3,2102.8,1.55723395]
[1770502041596,0.01,2104.2,2103.3,1.55723395]
[1770502041996,0.33666457,2104.6,2103.6,1.55723395]
[1770502042520,0.01,2104.5,2103.9,1.55723395]
[1770502042918,0.01,2104.4,2103.7,2.74561632]
[1770502043141,0.01,2104.5,2103.8,1.55723395]
[1770502043325,0.01,2104.5,2103.8,4.33029237]
[1770502043498,0.01,2104.5,2103.9,1.55723395]
[1770502044125,1.61809195,2105.4,2103.9,1.55723395]
[1770502044316,1.18743069,2105.4,2103.9,1.59290153]
[1770502044522,0.01,2105.3,2104.1,1.55723395]
[1770502044829,1.19740868,2105.5,2104.1,1.55723395]
[1770502045025,0.01,2105.4,2104.1,1.55723395]
[1770502045431,0.01,2105.3,2104.1,1.55723395]
[1770502045632,0.01,2105.5,2104.3,1.55723395]
[1770502045821,1.19706025,2106.1,2104.6,1.55723395]
[1770502046022,0.01,2106.1,2104.6,1.55723395]
[1770502046222,0.01,2106.0,2104.9,1.55723395]
[1770502046407,1.1869778,2106.2,2104.9,1.55723395]
[1770502046408,1.1969778,2106.2,2104.9,1.55723395]
[1770502046608,0.39871368,2106.3,2105.1,1.55723395]
[1770502046609,0.01,2106.1,2105.1,1.55723395]
[1770502046809,0.01,2106.2,2105.1,1.55723395]
[1770502047217,0.39871368,2106.3,2105.4,0.03566758]
[1770502047545,0.01,2106.2,2105.5,1.55723395]
[1770502047722,0.01,2106.1,2105.2,1.55723395]
[1770502048040,1.61809195,2106.3,2105.0,2.7448824]
[1770502048231,1.61809195,2106.1,2105.0,1.55723395]
[1770502048625,1.61809195,2106.1,2104.9,1.18766462]
[1770502048626,1.61809195,2105.9,2104.9,1.18770389]
[1770502048828,1.61809195,2105.9,2104.8,1.18772047]
[1770502049023,1.2327521,2106.0,2104.7,1.18779443]
[1770502049024,1.62809195,2105.8,2104.7,1.18779443]
[1770502049348,1.61809195,2105.8,2104.9,1.1877028]
[1770502049515,1.61809195,2105.8,2104.8,1.18773105]
[1770502049938,1.61809195,2105.8,2104.9,1.18769736]
[1770502050146,0.01,2105.7,2105.0,1.18764593]
[1770502050444,1.62809195,2105.6,2104.7,1.18779986]
[1770502050661,1.18736642,2105.5,2104.7,1.18779986]
[1770502051020,2.8054363,2105.6,2104.7,1.18779986]
[1770502051219,1.62809195,2105.5,2104.6,1.18783571]
[1770502051714,0.01,2105.4,2104.6,1.18783571]
[1770502052129,0.01,2105.3,2104.6,1.18783571]
[1770502052439,0.01,2105.4,2104.7,1.55723395]
[1770502052644,1.18685324,2106.5,2104.9,5.35593969]
[1770502052838,0.01,2106.4,2105.0,1.55723395]
[1770502053244,0.002,2105.5,2105.0,1.55723395]
[1770502053443,1.62809195,2106.3,2105.0,1.55723395]
[1770502053648,1.61809195,2106.1,2105.0,1.55723395]
[1770502054955,0.01,2106.0,2105.2,1.55723395]
[1770502055136,0.01,2106.2,2105.2,1.55723395]
[1770502056627,0.01,2106.2,2105.2,1.59290153]
[1770502057362,0.002,2106.4,2105.7,1.54806928]
[1770502057652,1.18644632,2107.2,2105.8,1.54806928]
[1770502057850,2.74804195,2107.3,2106.0,1.54806928]
[1770502058025,0.01,2107.2,2106.0,1.54806928]
[1770502058425,0.01,2107.1,2106.3,1.54806928]
[1770502058635,1.18632679,2107.4,2106.3,1.54806928]
[1770502058857,0.01,2107.3,2106.3,1.54806928]
[1770502059246,0.01,2107.2,2106.5,1.54806928]
[1770502059458,0.01,2107.4,2106.5,1.54806928]
[1770502059660,0.01,2107.4,2106.5,1.58373686]
[1770502059977,0.37147384,2107.9,2106.9,1.54806928]
[1770502060273,1.55749589,2107.9,2106.9,1.54806928]
[1770502060576,3.10913919,2107.9,2106.9,1.54806928]
[1770502060888,1.5516433,2107.8,2106.6,1.54806928]
[1770502061981,1.5516433,2107.6,2106.6,1.18670776]
[1770502062674,1.5516433,2107.6,2105.8,5.35593969]
[1770502062675,1.58731088,2107.6,2105.7,1.54806928]
[1770502062975,1.5516433,2107.2,2106.2,1.18693944]
[1770502063177,1.5516433,2107.2,2106.1,1.18698604]
[1770502063378,1.5516433,2107.2,2106.2,1.18695078]
[1770502063757,1.1862959,2107.4,2106.3,1.54806928]
[1770502063974,1.1862959,2107.4,2106.4,1.18685909]
[1770502064881,1.1862959,2107.4,2106.4,2.73492837]
[1770502065253,1.18627468,2107.5,2106.4,2.73492837]
[1770502065585,1.18627468,2107.5,2106.5,1.54806928]
[1770502065775,1.18627468,2107.5,2106.6,1.18674641]
[1770502066392,5.11555223,2107.9,2106.6,1.18674641]
[1770502066393,0.002,2107.4,2106.6,2.73481569]
[1770502066680,0.002,2107.4,2106.7,1.54806928]
[1770502066873,0.002,2107.4,2106.9,1.54806928]
[1770502067254,0.002,2107.4,2106.6,1.18674641]
[1770502067454,0.002,2107.4,2106.7,1.54806928]
[1770502067859,0.002,2107.4,2106.8,1.18663375]
[1770502069081,0.002,2107.4,2106.7,1.18665104]
[1770502069286,0.002,2107.4,2106.8,1.54806928]
[1770502071075,0.002,2107.4,2106.9,1.18657743]
[1770502071276,1.5536433,2107.4,2106.6,1.1867172]
[1770502071492,0.002,2107.4,2106.7,1.18668246]
[1770502072179,0.002,2107.4,2106.9,1.54806928]
[1770502073998,0.002,2107.4,2107.1,1.54806928]
[1770502074179,4.74321853,2108.3,2107.0,1.18652112]
[1770502074180,1.1876841,2108.5,2107.2,1.54806928]
[1770502076212,0.002,2108.5,2107.4,1.58373686]
[1770502078114,0.002,2108.5,2107.7,0.03566758]
[1770502078282,0.002,2108.5,2107.8,1.54806928]
[1770502079304,0.002,2108.3,2107.8,1.54806928]
[1770502079469,1.18533971,2109.1,2107.8,1.54806928]
[1770502080399,1.5516433,2109.0,2107.9,1.18601451]
[1770502082681,1.5516433,2108.8,2107.7,6.29212734]
[1770502082877,2.73700995,2109.1,2107.8,1.54806928]
[1770502083299,0.1024,2109.5,2107.8,1.54806928]
[1770502083597,2.73885533,2109.4,2107.8,1.54806928]
[1770502083804,1.5516433,2109.3,2107.8,1.54806928]
[1770502084017,1.5516433,2109.3,2108.0,1.54806928]
[1770502084180,1.18721203,2109.4,2108.0,1.54806928]
[1770502084588,0.002,2109.4,2108.1,1.18590199]
[1770502084790,0.002,2109.4,2108.2,1.54806928]
[1770502084791,1.1871878,2109.4,2108.2,1.54806928]
[1770502085293,1.5516433,2109.3,2108.2,1.54806928]
[1770502085693,0.002,2109.4,2108.2,1.54806928]
[1770502086005,1.18717571,2109.4,2108.2,1.54806928]
[1770502086301,1.18717259,2109.4,2108.2,1.54806928]
[1770502086891,0.002,2109.4,2108.3,2.78967842]
[1770502087202,0.002,2109.4,2108.4,1.60388893]
[1770502087511,1.51030174,2109.4,2108.4,1.60388893]
[1770502089304,2.69552667,2109.4,2108.5,1.18567702]
[1770502089512,0.002,2109.4,2108.6,1.60388893]
[1770502089710,1.18486324,2110.0,2108.7,1.60388893]
[1770502089913,2.69316498,2110.0,2108.7,1.60388893]
[1770502091106,1.50830174,2109.9,2108.7,1.60388893]
[1770502091511,6.24698635,2110.3,2108.9,1.60388893]
[1770502091816,0.002,2109.2,2108.9,1.60388893]
[1770502092115,1.52237916,2110.2,2108.9,1.60388893]
[1770502092313,0.002,2109.4,2108.9,1.60388893]
[1770502093697,0.002,2109.4,2109.0,2.77584315]
[1770502094910,0.002,2109.4,2109.1,1.59044723]
[1770502095106,0.002,2109.4,2108.9,1.18542116]
[1770502095505,0.002,2109.4,2108.8,1.18549375]
[1770502095707,0.002,2109.4,2108.7,4.74210576]
[1770502096220,0.002,2109.4,2108.7,1.18556456]
[1770502096793,1.52437916,2109.4,2108.6,1.18559697]
[1770502097609,1.18522732,2109.3,2108.3,1.18578949]
[1770502098010,2.70760648,2109.3,2108.3,1.18578949]
[1770502099898,1.52237916,2109.2,2108.3,1.18578949]
[1770502100927,0.002,2109.4,2108.4,1.59044723]
[1770502101232,1.18717889,2109.4,2108.4,1.59044723]
[1770502101930,0.002,2109.4,2108.5,1.18567702]
[1770502102132,0.002,2109.4,2108.5,2.77612425]
[1770502104316,0.002,2109.2,2108.6,1.59044723]
[1770502106735,2.70752899,2109.5,2108.7,1.18556456]
[1770502106913,1.52237916,2109.4,2108.7,1.18556456]
[1770502107115,1.52237916,2109.4,2108.6,1.18558194]
[1770502108731,2.70740921,2109.7,2108.8,2.77595557]
[1770502111734,1.52237916,2109.7,2108.8,2.77595557]
[1770502113038,1.52237916,2109.7,2108.8,1.18550834]
[1770502113548,1.52237916,2109.5,2108.4,1.18570405]
[1770502113716,1.52237916,2109.3,2108.4,1.18570405]
[1770502116028,1.18528351,2109.2,2108.4,1.18570405]
[1770502116228,1.51460724,2109.5,2108.5,1.53739447]
[1770502117260,1.51460724,2109.5,2108.5,1.53839447]
[1770502117427,0.002,2109.1,2108.5,1.53839447]
[1770502117627,1.51460724,2109.5,2108.5,1.53839447]
[1770502117953,0.002,2109.3,2108.5,1.53839447]
[1770502118164,0.002,2109.3,2108.6,2.72301526]
[1770502118326,2.69977514,2109.5,2108.6,2.72301526]
[1770502118844,1.18509162,2109.6,2108.7,1.53739447]
[1770502120727,1.18509162,2109.6,2108.8,1.18550834]
[1770502121052,2.69969886,2109.6,2108.8,1.18550834]
[1770502122147,1.51460724,2109.5,2108.8,1.18550834]
[1770502123155,2.6997738,2109.5,2108.8,1.18550834]
[1770502126161,1.18516656,2109.5,2108.9,1.53739447]
[1770502126343,2.69965464,2109.7,2108.9,1.53739447]
[1770502126655,1.1850474,2109.7,2108.9,1.53739447]
[1770502127836,1.51460724,2109.8,2108.9,2.72280282]
[1770502129044,1.51460724,2109.8,2108.9,1.53739447]
[1770502129245,1.51460724,2109.8,2108.8,1.1854738]
[1770502129656,1.51460724,2109.8,2108.8,1.18550358]
[1770502130368,1.51460724,2109.8,2108.6,4.74237633]
[1770502130369,1.51460724,2109.6,2108.6,1.53839447]
[1770502132564,1.51460724,2109.4,2108.6,0.001]
[1770502134566,1.51460724,2109.2,2108.6,0.001]
[1770502136653,1.51460724,2109.0,2108.6,0.001]
[1770502138668,4.74135887,2109.2,2108.6,0.001]
[1770502138669,1.51460724,2109.2,2108.6,0.001]
[1770502138968,1.51460724,2109.4,2108.6,1.53839447]
[1770502139288,1.1850026,2109.7,2108.6,1.53839447]
[1770502140665,1.1850026,2109.7,2108.8,1.53739447]
[1770502142872,1.51460724,2110.2,2109.0,1.53739447]
[1770502143054,1.51460724,2110.4,2109.0,1.53739447]
[1770502145078,1.51460724,2110.2,2109.2,1.53739447]
[1770502146284,1.51460724,2110.2,2108.9,1.55395077]
[1770502146449,1.51460724,2110.2,2108.9,0.001]
[1770502146880,1.49904492,2110.0,2109.0,1.55295077]
[1770502147394,1.49904492,2110.0,2109.1,1.55295077]
[1770502147679,1.18466568,2110.3,2109.1,1.55295077]
[1770502149378,1.49904492,2110.3,2109.2,1.18528351]
[1770502149550,1.49904492,2110.3,2109.3,1.55295077]
[1770502149752,1.49904492,2110.3,2109.1,1.55295077]
[1770502151789,1.58822592,2110.1,2108.9,0.001]
[1770502152276,1.55255834,2109.9,2108.9,0.001]
[1770502152579,1.55255834,2109.7,2108.9,0.001]
[1770502153786,1.55255834,2109.5,2108.6,0.001]
[1770502154078,1.58822592,2109.5,2108.6,0.001]
[1770502154250,1.55255834,2109.3,2108.6,0.001]
[1770502154456,0.1024,2109.4,2108.6,0.001]
[1770502154690,1.65495834,2109.4,2108.6,0.001]
[1770502155289,1.55255834,2109.4,2108.6,0.001]
[1770502155882,1.18522732,2109.3,2108.6,0.001]
[1770502157091,1.18522732,2109.3,2108.8,0.001]
[1770502158289,1.28745877,2109.6,2108.8,1.49646055]
[1770502158470,1.55255834,2109.5,2108.8,0.001]
[1770502159880,1.55255834,2109.3,2108.6,0.001]
[1770502160304,1.55255834,2109.1,2108.6,0.001]
[1770502161177,1.18528351,2109.2,2108.5,0.001]
[1770502161614,2.73784185,2109.2,2108.5,0.001]
[1770502163101,1.55255834,2109.1,2108.5,0.001]
[1770502165405,4.74113407,2109.4,2108.5,1.49646055]
[1770502167610,1.18517113,2109.5,2108.6,1.54288537]
[1770502167795,1.18517113,2109.5,2108.6,1.49546055]
[1770502168799,1.18517113,2109.5,2108.6,1.54288537]
[1770502169004,1.18517113,2109.5,2108.6,1.49546055]
[1770502169619,1.18517113,2109.5,2108.7,0.001]
[1770502169797,0.002,2109.3,2108.7,0.001]
[1770502171483,2.69172947,2109.5,2108.7,0.001]
[1770502171895,1.55255834,2109.4,2108.7,0.001]
[1770502172712,1.55255834,2109.4,2108.5,0.001]
[1770502173084,1.55255834,2109.2,2108.5,0.001]
[1770502174216,2.73789805,2109.1,2108.5,0.001]
[1770502174615,1.55255834,2109.0,2108.5,0.001]
[1770502175119,1.55255834,2109.0,2108.3,0.001]
[1770502176108,1.18545213,2108.9,2108.3,1.59005874]
[1770502177706,1.18545213,2108.9,2108.3,1.53005874]
[1770502178512,1.62288537,2109.0,2108.2,0.001]
[1770502180925,1.18545213,2108.9,2108.2,0.001]
[1770502181498,2.8083375,2108.9,2108.2,0.001]
[1770502182517,2.8083375,2108.9,2108.5,0.001]
[1770502182725,0.002,2108.8,2108.5,0.001]
[1770502183109,0.002,2108.8,2108.3,0.001]
[1770502185856,1.62288537,2108.5,2107.5,1.58905874]
[1770502186316,0.03566758,2108.2,2107.5,1.58905874]
[1770502186513,0.1024,2108.6,2107.5,1.58905874]
[1770502186732,1.72528537,2108.6,2107.5,1.58905874]
[1770502187239,1.18573325,2108.4,2107.5,1.58905874]
[1770502187408,0.03566758,2108.2,2107.5,1.58905874]
[1770502189446,1.18590199,2108.1,2107.4,0.001]
[1770502190562,6.96670176,2107.8,2107.1,0.001]
[1770502190728,1.62288537,2107.7,2106.7,1.58905874]
[1770502191048,0.03566758,2107.4,2106.8,1.59005874]
[1770502191231,1.18618333,2107.6,2106.8,1.59005874]
[1770502192862,2.8090687,2107.6,2106.8,1.59005874]
[1770502194359,1.18584574,2108.3,2106.9,1.58905874]
[1770502194524,0.1024,2108.2,2106.9,1.58905874]
[1770502195131,0.1024,2108.2,2107.1,1.58905874]
[1770502195357,0.002,2107.9,2107.1,1.58905874]
[1770502196938,1.62488537,2107.9,2107.0,0.001]
[1770502197551,1.65855295,2107.7,2106.8,0.001]
[1770502197860,1.18618333,2107.6,2106.8,0.001]
[1770502198052,1.62288537,2107.5,2106.8,0.001]
[1770502199277,0.03566758,2107.4,2106.8,0.001]
[1770502200370,0.03566758,2107.1,2106.0,1.58905874]
[1770502200573,1.65855295,2106.8,2105.9,0.001]
[1770502200780,1.76095295,2107.0,2105.9,1.59005874]
[1770502202361,1.18657743,2106.9,2105.9,1.59005874]
[1770502204389,4.78197732,2107.3,2106.2,1.58905874]
[1770502204390,1.1864085,2107.3,2106.2,1.58905874]
[1770502205097,2.80929387,2107.3,2106.2,1.58905874]
[1770502205296,0.03566758,2107.1,2106.2,1.58905874]
[1770502205496,1.65855295,2107.1,2105.9,1.59005874]
[1770502205711,0.03566758,2106.8,2105.9,1.59005874]
[1770502206262,1.43973285,2106.8,2105.9,1.59005874]